bitfinex-derivatives/quotes_ETHF0:USTF0_20250426
["timestamp","ask_amount","ask_price","bid_price","bid_amount"]
[1745661941512,1.10388,1811.2,1811.0,6.00936]
[1745661941711,1.3372,1811.3,1811.0,4.9054]
[1745661941909,3.2078,1811.6,1811.2,1.10387]
[1745661942108,1.10376,1811.4,1811.3,4.9054]
[1745661942310,1.6349,1811.6,1811.3,4.9054]
[1745661942613,1.1037,1811.5,1811.4,1.7124]
[1745661943015,1.3372,1811.7,1811.4,2.81612]
[1745661943016,2.4408,1811.7,1811.4,2.81612]
[1745661943214,5.308,1811.5,1811.4,1.7124]
[1745661943513,5.308,1811.5,1811.4,2.81616]
[1745661943816,5.308,1811.5,1811.4,1.7124]
[1745661944716,1.10376,1811.4,1811.3,7.1608]
[1745661944910,5.308,1811.5,1811.3,9.97698]
[1745661945108,1.10366,1811.6,1811.4,1.7124]
[1745661945320,1.10361,1811.7,1811.4,2.81614]
[1745661945615,1.1037,1811.5,1811.4,1.7124]
[1745661945815,1.1037,1811.5,1811.4,46.4654]
[1745661946218,5.308,1811.5,1811.4,46.4654]
[1745661946412,6.4117,1811.5,1811.4,46.4654]
[1745661947519,1.10376,1811.4,1811.3,3.953]
[1745661948015,6.9739,1811.5,1811.3,7.1608]
[1745661948211,3.2078,1811.8,1811.4,1.6031]
[1745661948414,3.2078,1811.8,1811.7,1.10358]
[1745661948611,1.5755,1812.3,1812.0,1.10338]
[1745661948807,1.5755,1812.3,1812.1,2.75049]
[1745661949015,1.5755,1812.3,1811.9,3.2078]
[1745661949016,2.67871,1812.3,1812.2,1.6472]
[1745661949206,6.8835,1812.3,1812.0,3.953]
[1745661949414,1.10333,1812.1,1812.0,5.6002]
[1745661950017,10.0913,1812.3,1812.0,5.6002]
[1745661950314,1.10352,1811.8,1811.7,3.952]
[1745661950923,8.2078,1811.8,1811.4,3.2078]
[1745661951214,4.7833,1811.7,1811.3,3.2078]
[1745661951424,5.308,1811.8,1811.5,4.31145]
[1745661951609,5.308,1811.8,1811.6,2.77462]
[1745661951813,5.308,1811.8,1811.7,1.671]
[1745661952217,5.308,1811.8,1811.7,4.8788]
[1745661952417,5.308,1811.8,1811.7,5.98238]
[1745661953620,5.308,1811.8,1811.7,10.98238]
[1745661954422,5.308,1811.8,1811.7,11.39588142]
[1745661954822,5.308,1811.8,1811.7,10.29230142]
[1745661955122,5.308,1811.8,1811.7,15.34789889]
[1745661955524,5.308,1811.8,1811.7,15.3477022]
[1745661957019,5.308,1811.8,1811.7,15.34746535]
[1745661957314,5.308,1811.8,1811.7,14.93438]
[1745661957924,5.308,1811.8,1811.7,9.93438]
[1745661959124,6.41152,1811.8,1811.7,8.8298]
[1745661959620,6.41152,1811.8,1811.7,4.8788]
[1745661959924,6.41152,1811.8,1811.7,8.8298]
[1745661960124,6.41152,1811.8,1811.7,5.622]
[1745661960424,5.308,1811.8,1811.5,3.2078]
[1745661960613,1.10364,1811.6,1811.5,3.2078]
[1745661960816,1.10364,1811.6,1811.5,7.1588]
[1745661961021,2.46744,1811.6,1811.5,7.1588]
[1745661961221,7.77544,1811.6,1811.5,7.1588]
[1745661961426,7.77544,1811.6,1811.5,3.951]
[1745661962021,7.77544,1811.6,1811.4,1.6141]
[1745661962022,1.1037,1811.5,1811.4,1.6141]
[1745661962223,1.1037,1811.5,1811.4,5.5651]
[1745661962522,1.10382,1811.3,1811.2,1.3389]
[1745661962711,1.10388,1811.2,1811.1,3.2078]
[1745661963112,6.41188,1811.2,1811.1,3.2078]
[1745661963714,1.104,1811.0,1810.9,3.951]
[1745661963913,2.76002,1811.0,1810.4,6.157]
[1745661964218,7.6294,1810.9,1810.4,3.2078]
[1745661964424,1.10437,1810.4,1810.3,1.5726]
[1745661964626,1.10443,1810.3,1810.2,3.951]
[1745661964925,2.76573,1810.3,1810.2,3.951]
[1745661965229,8.07373,1810.3,1810.2,44.751]
[1745661965416,6.9693,1810.3,1810.0,3.2078]
[1745661965620,1.10455,1810.1,1810.0,3.952]
[1745661965829,1.10455,1810.1,1810.0,44.752]
[1745661966123,6.41255,1810.1,1810.0,3.952]
[1745661967027,1.10461,1810.0,1809.9,1.5726]
[1745661967219,2.80941,1810.0,1809.9,1.5726]
[1745661968219,8.11741,1810.0,1809.9,1.5726]
[1745661968521,1.10467,1809.9,1809.8,3.952]
[1745661968722,1.10486,1809.6,1809.5,1.5931]
[1745661969122,6.41286,1809.6,1809.5,1.5931]
[1745661971731,5.308,1809.6,1809.5,1.5931]
[1745661972128,5.308,1809.6,1809.5,7.69802]
[1745661972326,5.308,1809.6,1809.5,8.98262]
[1745661972923,1.10454,1810.2,1809.5,7.8777]
[1745661973125,1.10456,1810.1,1809.9,1.10465]
[1745661973326,1.10456,1810.1,1810.0,1.6053]
[1745661974127,6.41256,1810.1,1810.0,1.6053]
[1745661974327,6.41255,1810.1,1810.0,1.6053]
[1745661974723,5.308,1810.1,1810.0,1.6053]
[1745661974929,5.308,1810.1,1810.0,2.70991]
[1745661975128,5.308,1810.1,1810.0,1.6053]
[1745661976023,6.41255,1810.1,1810.0,1.6053]
[1745661976825,5.308,1810.1,1810.0,2.70991]
[1745661977026,5.308,1810.1,1810.0,10.91771]
[1745661977237,5.308,1810.1,1810.0,12.32201]
[1745661977432,4.8087,1810.8,1810.4,1.10432]
[1745661977737,2.70506,1810.8,1810.5,4.9028]
[1745661977928,1.10404,1811.0,1810.7,1.10415]
[1745661978235,1.10425,1810.6,1810.5,1.4043]
[1745661978429,1.10437,1810.4,1810.3,7.1758]
[1745661978628,1.10437,1810.4,1810.3,3.968]
[1745661978834,1.10437,1810.4,1810.3,44.768]
[1745661979131,5.308,1810.4,1810.3,44.768]
[1745661979330,6.41237,1810.4,1810.3,44.768]
[1745661979734,8.14077,1810.4,1810.3,44.768]
[1745661980232,8.14077,1810.4,1810.3,40.8]
[1745661980935,8.14077,1810.4,1810.2,3.968]
[1745661980936,1.10443,1810.3,1810.2,3.968]
[1745661981138,8.14083,1810.3,1810.2,5.6454]
[1745661981638,8.14083,1810.3,1810.2,3.968]
[1745661983030,1.10449,1810.2,1810.1,3.2078]
[1745661983229,2.82969,1810.2,1810.1,3.2078]
[1745661983829,1.10455,1810.1,1810.0,7.1758]
[1745661984038,2.82975,1810.1,1810.0,3.2078]
[1745661984238,1.10467,1809.9,1809.8,7.1758]
[1745661984427,1.10467,1809.9,1809.8,3.968]
[1745661984630,1.10467,1809.9,1809.8,44.768]
[1745661985129,6.41267,1809.9,1809.8,44.768]
[1745661985335,5.308,1809.9,1809.8,47.9758]
[1745661985535,6.41267,1809.9,1809.8,47.9758]
[1745661986139,5.308,1809.9,1809.8,47.9758]
[1745661986538,5.308,1809.9,1809.8,3.2078]
[1745661986840,6.41267,1809.9,1809.8,3.2078]
[1745661987134,6.41267,1809.9,1809.8,40.8]
[1745661988534,8.13167,1809.9,1809.8,40.8]
[1745661988936,8.13167,1809.9,1809.4,4.5534]
[1745661988937,1.10492,1809.5,1809.4,4.5534]
[1745661989135,6.41292,1809.5,1809.4,8.5224]
[1745661989342,5.308,1809.5,1809.4,8.5224]
[1745661989539,5.308,1809.5,1809.4,10.2569]
[1745661989837,6.41292,1809.5,1809.4,10.2569]
[1745661990335,6.41292,1809.5,1809.4,51.0569]
[1745661991638,6.41292,1809.5,1809.4,6.2879]
[1745661995943,1.10512,1809.2,1809.0,3.2078]
[1745661996144,6.4131,1809.2,1809.1,0.41510767]
[1745661996342,1.10516,1809.1,1809.0,46.4798]
[1745661996544,6.41314,1809.2,1809.0,48.00003421]
[1745661996845,1.10516,1809.1,1809.0,42.5108]
[1745661997047,5.308,1809.2,1809.1,1.10516]
[1745661997240,4.31286,1809.3,1809.1,1.10516]
[1745661997440,1.10516,1809.1,1809.0,40.8]
[1745661998248,6.41316,1809.1,1809.0,40.8]
[1745661998448,5.308,1809.1,1809.0,41.90522]
[1745661998845,5.308,1809.1,1809.0,42.31990566]
[1745661999041,5.308,1809.1,1809.0,42.31989949]
[1745661999942,5.308,1809.1,1809.0,47.31989949]
[1745662000144,3.2078,1809.3,1809.2,1.1051]
[1745662000345,3.2078,1809.6,1809.5,1.10492]
[1745662001146,1.3782,1809.9,1809.7,1.10475]
[1745662001454,1.3782,1809.9,1809.8,1.10474]
[1745662002147,1.10492,1809.5,1809.4,3.97]
[1745662002453,1.10492,1809.5,1809.4,4.38453192]
[1745662002645,1.1049,1809.6,1809.4,4.38453192]
[1745662002846,2.6843,1809.6,1809.4,3.97]
[1745662003044,7.9923,1809.6,1809.4,5.07498]
[1745662003953,6.8874,1809.6,1809.4,3.97]
[1745662004148,1.10492,1809.5,1809.4,3.97]
[1745662004345,2.78662,1809.5,1809.4,3.97]
[1745662004548,2.78662,1809.5,1809.3,9.65342]
[1745662005054,8.09462,1809.5,1809.3,9.65342]
[1745662005553,6.9897,1809.5,1809.3,9.65342]
[1745662005755,6.9897,1809.5,1809.4,1.10498]
[1745662006253,6.9897,1809.5,1809.3,8.5484]
[1745662006553,6.9897,1809.5,1809.4,1.10498]
[1745662007452,5.308,1809.5,1809.4,1.10498]
[1745662007654,5.308,1809.5,1809.3,8.5484]
[1745662007856,6.41294,1809.5,1809.3,9.6534]
[1745662008055,1.10498,1809.4,1809.3,4.5924]
[1745662008248,1.10498,1809.4,1809.3,1.7996031]
[1745662008448,2.73338,1809.4,1809.3,5.3406]
[1745662009161,8.04138,1809.4,1809.3,5.3406]
[1745662009348,6.9364,1809.4,1809.3,6.44564]
[1745662009751,5.308,1809.4,1809.3,6.44564]
[1745662010649,5.308,1809.4,1809.3,5.3406]
[1745662010849,5.308,1809.4,1809.3,6.44564]
[1745662011154,6.8753,1809.4,1809.3,6.86110857]
[1745662011456,6.8753,1809.4,1809.3,6.44564]
[1745662011658,6.8753,1809.4,1809.3,6.86110763]
[1745662013359,6.8753,1809.4,1809.3,6.86142404]
[1745662013659,5.308,1809.4,1809.3,6.86142404]
[1745662015053,5.308,1809.4,1809.3,6.44564]
[1745662015260,3.2078,1809.6,1809.5,1.10492]
[1745662015558,3.2078,1809.6,1809.5,1.52078866]
[1745662016149,8.5158,1809.6,1809.5,3.11238866]
[1745662016845,8.5158,1809.6,1809.5,3.11262366]
[1745662017348,9.62066,1809.6,1809.5,2.00770366]
[1745662017553,9.62066,1809.6,1809.5,0.41610366]
[1745662017950,8.5158,1809.6,1809.5,1.52102366]
[1745662018653,8.5158,1809.6,1809.5,3.10980477]
[1745662019246,5.308,1809.6,1809.5,3.10980477]
[1745662020553,5.308,1809.6,1809.5,3.10979668]
[1745662021560,9.62066,1809.6,1809.5,0.41637668]
[1745662021749,10.2095,1809.6,1809.3,3.062]
[1745662021952,1.10498,1809.4,1809.3,8.12304]
[1745662022155,6.41298,1809.4,1809.3,6.86205134]
[1745662022350,8.10668,1809.4,1809.3,6.86205134]
[1745662022656,7.0017,1809.4,1809.3,6.86205287]
[1745662022853,5.308,1809.4,1809.3,8.53945287]
[1745662025261,5.308,1809.4,1809.3,8.5394489]
[1745662025451,6.41298,1809.4,1809.3,6.0498089]
[1745662025755,7.97638,1809.4,1809.3,5.6334]
[1745662026154,7.97638,1809.4,1809.3,6.73844]
[1745662027253,7.97638,1809.4,1809.3,7.1549536]
[1745662027659,6.8714,1809.4,1809.3,7.1549536]
[1745662027863,7.97638,1809.4,1809.3,7.1549536]
[1745662028053,7.97638,1809.4,1809.3,6.0499136]
[1745662028549,5.308,1809.4,1809.3,7.1549536]
[1745662028951,5.308,1809.4,1809.3,7.15503592]
[1745662029152,5.308,1809.4,1809.3,8.53463592]
[1745662030862,5.308,1809.4,1809.3,8.53472985]
[1745662032458,5.308,1809.4,1809.3,8.53481141]
[1745662034156,5.308,1809.4,1809.3,8.11804]
[1745662034355,5.308,1809.4,1809.3,8.53481212]
[1745662036053,2.1002,1809.4,1809.3,8.53481713]
[1745662037163,3.2078,1810.0,1809.3,12.42977713]
[1745662037455,6.1654,1810.2,1810.1,1.10455]
[1745662037762,1.10437,1810.4,1810.2,1.10446]
[1745662037963,1.10437,1810.4,1810.3,1.7045]
[1745662038160,6.41237,1810.4,1810.3,1.7045]
[1745662038463,5.308,1810.4,1809.9,2.6064]
[1745662038657,1.10451,1810.2,1810.0,7.18010056]
[1745662038864,2.9576,1810.1,1810.0,6.76409]
[1745662039068,8.2656,1810.1,1810.0,7.18011212]
[1745662039964,8.2656,1810.1,1810.0,3.22511212]
[1745662040166,8.2656,1810.1,1810.0,7.18011212]
[1745662040367,8.2656,1810.1,1810.0,3.22511212]
[1745662040766,9.37015,1810.1,1810.0,3.955]
[1745662040965,1.10461,1810.0,1809.9,1.2758]
[1745662041166,7.0132,1810.0,1809.4,3.2078]
[1745662041363,3.2078,1809.7,1809.3,6.68849]
[1745662041668,1.10495,1809.5,1809.3,6.68849]
[1745662042064,1.7052,1809.5,1809.4,1.5206528]
[1745662042265,7.0132,1809.5,1809.4,3.1491528]
[1745662042468,5.308,1809.5,1809.4,3.1491528]
[1745662043167,5.308,1809.5,1809.4,3.14914832]
[1745662044165,3.2078,1809.9,1809.8,1.10474]
[1745662044665,3.2078,1809.9,1809.8,1.52039671]
[1745662044867,4.8886,1809.9,1809.8,3.23400073]
[1745662045255,10.1966,1809.9,1809.8,3.23400073]
[1745662045454,8.5158,1809.9,1809.8,3.23400073]
[1745662047070,5.308,1809.9,1809.8,3.23400073]
[1745662048470,5.308,1809.9,1809.8,3.23365018]
[1745662050168,5.308,1809.9,1809.8,3.23357291]
[1745662050872,5.308,1809.9,1809.8,3.23354745]
[1745662051062,5.308,1809.9,1809.8,3.2335475]
[1745662051967,5.308,1809.9,1809.8,3.23351759]
[1745662052371,5.308,1809.9,1809.8,3.23351699]
[1745662052773,5.308,1809.9,1809.8,2.81834]
[1745662052964,5.308,1809.9,1809.8,3.23350222]
[1745662053360,5.308,1809.9,1809.8,3.23350014]
[1745662053559,5.308,1809.9,1809.8,2.81834]
[1745662053764,5.308,1809.9,1809.8,3.23350132]
[1745662054164,5.308,1809.9,1809.8,2.81834]
[1745662054470,5.308,1809.9,1809.8,6.08275582]
[1745662054665,6.6779,1809.9,1809.8,6.08275582]
[1745662054968,8.3916,1809.9,1809.8,7.18752942]
[1745662055170,8.3916,1809.9,1809.8,6.08278942]
[1745662055469,1.1049,1809.6,1809.5,3.954]
[1745662055670,16.5994,1809.9,1809.2,3.2078]
[1745662055671,1.10496,1809.5,1809.2,5.98188]
[1745662055861,6.02226,1809.5,1809.3,4.36931428]
[1745662056063,1.3434,1809.4,1809.3,3.954]
[1745662056269,3.0529,1809.4,1809.3,4.36935883]
[1745662056470,4.15788,1809.4,1809.3,4.36935883]
[1745662056665,3.0529,1809.4,1809.3,4.36935883]
[1745662057168,8.3609,1809.4,1809.0,44.0078]
[1745662057470,3.2078,1809.1,1808.8,3.954]
[1745662057767,1.10532,1808.9,1808.6,8.50599283]
[1745662057974,1.7095,1808.8,1808.7,2.08448508]
[1745662058173,7.0175,1808.8,1808.7,1.669]
[1745662058973,7.0175,1808.8,1808.6,8.50599283]
[1745662059374,7.0175,1808.8,1808.6,10.07039283]
[1745662060082,1.7095,1808.8,1808.6,10.07039283]
[1745662060267,1.7095,1808.8,1808.6,2.66984]
[1745662060668,1.7095,1808.8,1808.7,1.10541]
[1745662060873,1.7095,1808.8,1808.6,2.66987]
[1745662061179,8.12287,1808.8,1808.6,1.5644]
[1745662061477,7.0175,1808.8,1808.6,2.66986]
[1745662061878,8.12286,1808.8,1808.6,1.5644]
[1745662062076,8.12288,1808.8,1808.6,1.5644]
[1745662062983,7.0175,1808.8,1808.6,2.66987]
[1745662063380,7.0175,1808.8,1808.7,40.8]
[1745662063776,8.12285,1808.8,1808.7,40.8]
[1745662065182,7.0175,1808.8,1808.7,41.90541]
[1745662066181,8.12285,1808.8,1808.7,40.8]
[1745662066975,7.0175,1808.8,1808.7,41.90541]
[1745662067174,7.0175,1808.8,1808.7,43.59421]
[1745662068283,8.12285,1808.8,1808.7,42.4888]
[1745662068587,7.0175,1808.8,1808.7,43.59421]
[1745662069081,5.308,1808.8,1808.7,43.59421]
[1745662069385,5.308,1808.8,1808.7,40.8]
[1745662069575,8.05485,1808.8,1808.7,40.8]
[1745662069773,1.10541,1808.7,1808.5,9.95608]
[1745662069974,2.74691,1808.7,1808.5,9.95608]
[1745662070169,8.05491,1808.7,1808.5,9.95608]
[1745662070380,1.6584,1808.6,1808.5,9.95608]
[1745662070879,1.6584,1808.6,1808.4,46.085]
[1745662071079,8.07192,1808.6,1808.4,47.19058]
[1745662071280,8.07192,1808.6,1808.5,1.10553]
[1745662071479,6.41352,1808.6,1808.5,1.10553]
[1745662071682,5.308,1808.6,1808.5,1.10553]
[1745662072483,5.308,1808.6,1808.5,2.69943]
[1745662073077,5.65651,1808.9,1808.7,1.10537]
[1745662074183,10.96451,1808.9,1808.7,1.10537]
[1745662074576,1.10535,1808.8,1808.7,1.10537]
[1745662074972,10.96453,1808.9,1808.7,1.10537]
[1745662075180,4.5512,1808.9,1808.8,1.10535]
[1745662075778,4.5512,1808.9,1808.8,41.90535]
[1745662075985,4.5512,1808.9,1808.8,1.10535]
[1745662076182,9.8592,1808.9,1808.8,1.10535]
[1745662076485,10.96449,1808.9,1808.8,40.8]
[1745662076878,9.8592,1808.9,1808.8,41.90535]
[1745662079480,10.96449,1808.9,1808.8,41.90535]
[1745662079676,10.96449,1808.9,1808.8,43.63525]
[1745662079880,9.8592,1808.9,1808.8,43.63525]
[1745662080178,6.6514,1808.9,1808.8,43.63525]
[1745662081882,6.6514,1808.9,1808.7,3.955]
[1745662081883,1.10535,1808.8,1808.7,3.955]
[1745662082183,1.10547,1808.6,1808.5,5.6849]
[1745662082489,1.10547,1808.6,1808.5,3.955]
[1745662082989,1.10558,1808.5,1808.3,6.71233]
[1745662083183,2.44998,1808.5,1808.3,47.51233]
[1745662083383,2.44998,1808.5,1808.3,46.4067]
[1745662083585,1.3444,1808.5,1808.4,1.10559]
[1745662083784,5.308,1808.6,1808.5,1.10553]
[1745662084391,5.308,1808.6,1808.5,2.41633]
[1745662084591,5.308,1808.6,1808.5,2.83194439]
[1745662084793,5.308,1808.6,1808.5,4.48364439]
[1745662085285,5.308,1808.7,1808.6,1.10547]
[1745662085491,5.308,1808.7,1808.6,3.15918439]
[1745662085785,5.308,1808.7,1808.6,7.11418439]
[1745662086190,5.65746,1809.0,1808.8,1.10534]
[1745662086385,5.65746,1809.0,1808.9,0.41561439]
[1745662086386,7.24986,1809.0,1808.9,0.41561439]
[1745662086588,1.10535,1808.8,1808.7,1.6381]
[1745662086782,1.10535,1808.8,1808.7,2.054581]
[1745662087289,6.41335,1808.8,1808.7,2.054581]
[1745662088484,9.62115,1808.8,1808.7,0.416481]
[1745662089590,1.10547,1808.6,1808.5,1.6141]
[1745662089785,1.10547,1808.6,1808.5,2.03103232]
[1745662089982,8.5158,1808.8,1808.5,3.13652232]
[1745662090183,6.41347,1808.6,1808.5,1.6141]
[1745662090385,5.308,1808.6,1808.5,3.13653767]
[1745662091190,6.41347,1808.6,1808.5,3.13653767]
[1745662091891,5.308,1808.6,1808.5,3.13653767]
[1745662092593,6.41347,1808.6,1808.5,2.03100767]
[1745662092889,1.10553,1808.5,1808.4,5.06056]
[1745662093089,1.3411,1808.5,1808.4,7.08496247]
[1745662093493,1.3411,1808.5,1808.4,3.12996247]
[1745662094190,6.6491,1808.5,1808.4,3.12996247]
[1745662094591,7.75463,1808.5,1808.4,2.02440247]
[1745662094890,7.75463,1808.5,1808.4,2.02428943]
[1745662095585,1.10565,1808.3,1808.2,1.3117]
[1745662096089,6.41365,1808.3,1808.2,1.3117]
[1745662096591,1.10571,1808.2,1808.1,1.7251]
[1745662096791,1.10577,1808.1,1808.0,40.8]
[1745662096994,8.5158,1808.3,1808.0,42.5251]
[1745662097190,5.308,1808.1,1808.0,43.63093]
[1745662097386,5.308,1808.1,1808.0,41.90583]
[1745662097980,5.308,1808.1,1808.0,50.11363]
[1745662098192,2.44666,1808.5,1808.3,1.1056]
[1745662098385,2.44666,1808.5,1808.4,1.3431]
[1745662099293,7.75466,1808.5,1808.4,1.3431]
[1745662099493,1.10565,1808.3,1808.2,3.953]
[1745662100192,5.308,1808.3,1808.2,5.05871]
[1745662101287,6.41365,1808.3,1808.2,3.953]
[1745662101892,5.308,1808.3,1808.2,5.05871]
[1745662102997,6.41365,1808.3,1808.2,5.05871]
[1745662103388,5.308,1808.3,1808.2,5.05871]
[1745662103595,6.41365,1808.3,1808.2,5.05871]
[1745662106599,5.308,1808.3,1808.2,5.97581]
[1745662106903,5.308,1808.3,1808.2,9.18361]
[1745662107195,4.31335,1808.5,1808.4,1.10559]
[1745662107594,4.31335,1808.5,1808.3,1.10562]
[1745662107790,4.31335,1808.5,1808.3,1.10565]
[1745662107995,4.31335,1808.5,1808.4,1.10559]
[1745662108297,9.62135,1808.5,1808.4,1.10559]
[1745662109190,9.62135,1808.5,1808.4,1.50708515]
[1745662110598,6.41355,1808.5,1808.4,1.50708515]
[1745662110801,6.41355,1808.5,1808.4,1.5072164]
[1745662111601,9.62135,1808.5,1808.4,0.4016264]
[1745662111806,1.10565,1808.3,1808.2,5.05868]
[1745662112102,1.10565,1808.3,1808.2,5.46034339]
[1745662112301,1.10565,1808.3,1808.2,4.35466339]
[1745662112501,2.07025,1808.3,1808.2,4.35471479]
[1745662112699,2.07025,1808.3,1808.2,0.40171479]
[1745662113304,1.10577,1808.1,1808.0,40.8]
[1745662113605,1.10577,1808.1,1808.0,41.20169385]
[1745662113801,9.4804,1808.3,1808.0,0.40169385]
[1745662113999,1.10572,1808.2,1808.1,1.50745385]
[1745662114310,1.10572,1808.2,1808.1,1.50744385]
[1745662114804,1.10579,1808.1,1807.9,46.6815]
[1745662115006,1.10579,1808.1,1808.0,0.4016618]
[1745662115211,5.308,1808.1,1808.0,0.4016618]
[1745662115398,5.308,1808.1,1808.0,1.5075018]
[1745662116007,5.308,1808.1,1808.0,3.2021018]
[1745662116202,6.41377,1808.1,1808.0,2.09625374]
[1745662116397,7.98717,1808.1,1808.0,2.09625374]
[1745662116798,5.308,1808.1,1808.0,3.20209374]
[1745662118098,4.1724,1808.3,1808.2,1.10571]
[1745662118298,4.1724,1808.3,1808.2,1.50736374]
[1745662118606,3.2078,1808.3,1808.2,1.50736374]
[1745662119308,8.5158,1808.3,1808.2,1.50736374]
[1745662119699,8.5158,1808.3,1808.2,1.50767298]
[1745662120306,9.62145,1808.3,1808.2,1.50767298]
[1745662120513,8.5158,1808.3,1808.2,1.50767298]
[1745662123307,8.5158,1808.3,1808.2,1.50779907]
[1745662123504,5.308,1808.3,1808.2,1.50779907]
[1745662124207,5.308,1808.3,1808.2,4.71559907]
[1745662125308,5.308,1808.3,1808.2,3.60988907]
[1745662125511,6.41365,1808.3,1808.2,0.40208907]
[1745662125809,6.41365,1808.3,1808.2,1.50779907]
[1745662125810,5.308,1808.3,1808.2,1.50779907]
[1745662128002,4.89131057,1808.3,1808.2,13.66559907]
[1745662128817,4.89131057,1808.3,1808.2,54.46559907]
[1745662129205,3.2078,1808.7,1808.6,1.10547]
[1745662129504,3.2078,1808.7,1808.6,1.50755907]
[1745662130001,3.2078,1808.7,1808.6,3.17695907]
[1745662130207,8.5158,1808.7,1808.6,3.17695907]
[1745662132199,8.5158,1808.7,1808.6,3.17661844]
[1745662133913,8.5158,1808.7,1808.6,3.17645202]
[1745662134616,5.308,1808.7,1808.6,3.17645202]
[1745662135116,3.2078,1808.9,1808.8,1.10535]
[1745662135308,3.2078,1808.9,1808.8,1.50693202]
[1745662135715,3.2078,1808.9,1808.8,1.50674506]
[1745662135916,3.2078,1808.9,1808.8,3.15614506]
[1745662136215,8.5158,1808.9,1808.8,3.15614506]
[1745662136424,8.5158,1808.9,1808.8,2.75475]
[1745662137018,10.1608,1808.9,1808.8,2.75475]
[1745662139331,11.26609,1808.9,1808.8,2.75475]
[1745662139525,10.1608,1808.9,1808.8,2.75475]
[1745662140227,11.26609,1808.9,1808.8,1.6494]
[1745662141034,11.26609,1808.9,1808.8,2.75475]
[1745662141634,1.10535,1808.8,1808.7,0.9553]
[1745662141828,1.5732,1808.8,1808.7,2.461722]
[1745662142330,1.5732,1808.8,1808.4,3.949]
[1745662142331,11.8812,1808.8,1808.4,3.949]
[1745662142631,1.10564,1808.4,1808.2,0.8182]
[1745662142831,4.0456,1808.3,1808.2,1.9239]
[1745662143033,5.6188,1808.3,1808.2,3.5857]
[1745662143232,6.72445,1808.3,1808.2,2.88115074]
[1745662143434,6.72445,1808.3,1808.2,1.21938575]
[1745662143637,6.72445,1808.3,1808.2,0.8182]
[1745662143834,6.72445,1808.3,1808.1,5.05474]
[1745662144135,1.676,1808.2,1808.1,5.05474]
[1745662144338,1.676,1808.2,1808.1,5.45592976]
[1745662144736,1.676,1808.2,1808.1,5.45595925]
[1745662145334,5.308,1808.2,1808.1,7.10775925]
[1745662146027,5.308,1808.2,1808.1,6.00201925]
[1745662146028,6.41371,1808.2,1808.1,6.00201925]
[1745662146230,8.08971,1808.2,1808.1,0.40121925]
[1745662146431,1.10584,1808.0,1807.9,6.4556]
[1745662146631,1.10584,1808.0,1807.9,6.85689814]
[1745662146831,1.10584,1808.0,1807.9,47.2556]
[1745662147037,2.73104,1808.0,1807.9,47.65691905]
[1745662147237,8.03904,1808.0,1807.9,47.65691905]
[1745662147431,8.03904,1808.0,1807.9,47.2556]
[1745662148026,6.9332,1808.0,1807.9,48.3615]
[1745662148237,8.03904,1808.0,1807.9,47.2556]
[1745662148642,8.03904,1808.0,1807.9,40.8]
[1745662148940,8.03904,1808.0,1807.8,1.10596]
[1745662149138,2.4874,1807.9,1807.8,1.10596]
[1745662149334,3.5933,1807.9,1807.8,40.8]
[1745662149933,3.5933,1807.9,1807.7,4.3138]
[1745662150140,7.27612,1807.9,1807.7,1.10596]
[1745662150445,7.27612,1807.9,1807.8,42.4572]
[1745662150940,5.308,1807.9,1807.8,43.56316]
[1745662151135,3.2078,1808.1,1807.8,43.56316]
[1745662151136,3.2078,1808.1,1808.0,1.10584]
[1745662151738,4.1215,1808.3,1808.2,1.10571]
[1745662152738,4.1215,1808.3,1808.2,1.50646885]
[1745662152940,4.1215,1808.3,1808.2,5.45646519]
[1745662153137,9.4295,1808.3,1808.2,5.45646519]
[1745662154141,5.308,1808.3,1808.2,5.45646519]
[1745662154342,3.63511,1808.6,1808.4,1.10558]
[1745662154645,1.69,1808.5,1808.3,3.51071]
[1745662154833,1.69,1808.5,1808.4,2.68019]
[1745662155033,1.94511,1808.6,1808.4,2.68019]
[1745662155238,1.94511,1808.6,1808.5,1.5746]
[1745662155443,3.51611,1808.6,1808.5,1.5746]
[1745662156239,8.82411,1808.6,1808.5,1.5746]
[1745662157944,1.10565,1808.3,1808.2,3.95]
[1745662158144,5.308,1808.3,1808.0,4.9095]
[1745662158348,3.54226,1808.2,1808.0,6.01533]
[1745662158641,1.5842,1808.1,1808.0,6.01533]
[1745662159149,0.8655,1808.2,1808.1,1.10577]
[1745662159342,0.8655,1808.2,1808.1,1.5919]
[1745662159744,0.8655,1808.2,1808.1,2.69767]
[1745662160241,6.1735,1808.2,1808.1,2.69767]
[1745662160843,5.308,1808.2,1808.1,2.69767]
[1745662162242,6.1622,1808.2,1808.1,2.69767]
[1745662162442,7.26791,1808.2,1808.1,2.69767]
[1745662162752,6.1622,1808.2,1808.1,2.69767]
[1745662167954,7.26791,1808.2,1808.1,2.69767]
[1745662168954,6.1622,1808.2,1808.1,2.69767]
[1745662170557,5.308,1808.2,1808.1,2.69767]
[1745662170956,5.308,1808.2,1808.1,3.09925281]
[1745662171157,3.2078,1808.4,1808.3,1.10565]
[1745662171757,3.2078,1808.4,1808.3,1.91625]
[1745662172053,8.5158,1808.4,1808.3,2.31805894]
[1745662172259,9.62139,1808.4,1808.3,2.31805894]